bitfinex-derivatives/quotes_BNBF0:USTF0_20250302
["timestamp","ask_amount","ask_price","bid_price","bid_amount"]
[1740910337480,0.89533859,608.53,608.02,1.105]
[1740910337681,0.89533859,608.52,608.02,1.105]
[1740910337881,1.13352549,608.51,608.02,1.105]
[1740910338381,1.13352549,608.5,608.02,1.105]
[1740910338781,1.13352549,608.49,608.02,1.105]
[1740910339181,0.89522735,608.59,608.02,1.105]
[1740910339382,0.89522735,608.58,608.02,2.631]
[1740910339682,0.89522735,608.57,608.02,2.631]
[1740910339877,0.8949609,608.62,608.02,2.631]
[1740910340083,0.98068887,608.93,608.03,0.32893113]
[1740910340283,1.13304415,608.56,608.03,0.32893113]
[1740910340678,3.92900395,608.75,608.03,0.32893113]
[1740910340880,2.32618857,608.74,608.03,0.32893113]
[1740910341078,0.89468791,608.73,608.03,0.32893113]
[1740910341283,0.89468791,608.72,608.03,0.32893113]
[1740910341484,0.89468791,608.71,608.03,0.32893113]
[1740910341780,0.89468791,608.7,608.03,0.32893113]
[1740910341984,0.89468791,608.69,608.03,0.32893113]
[1740910342181,0.89468791,608.7,608.03,0.32893113]
[1740910342382,1.13304415,608.68,608.03,0.32893113]
[1740910343080,1.13304415,608.67,608.03,0.32893113]
[1740910343479,1.13304415,608.66,608.03,0.32893113]
[1740910344086,1.13304415,608.75,608.03,0.32893113]
[1740910344785,1.13304415,608.74,608.03,0.32893113]
[1740910345380,1.71594108,608.83,608.03,0.32893113]
[1740910345381,1.13304415,608.73,608.03,0.32893113]
[1740910345880,1.13304415,608.72,608.03,0.32893113]
[1740910346084,1.13304415,608.71,608.03,0.32893113]
[1740910346681,0.9791087,608.99,608.03,0.32893113]
[1740910346682,1.13304415,608.7,608.03,0.32893113]
[1740910347381,1.13304415,608.69,608.03,0.32893113]
[1740910347782,1.13304415,608.77,608.03,0.32893113]
[1740910348383,0.89326158,608.76,608.03,0.90693113]
[1740910348586,2.02630573,608.75,608.03,0.90693113]
[1740910348886,0.89326158,608.74,608.03,0.90693113]
[1740910349287,1.13304415,608.73,608.03,0.90693113]
[1740910349482,0.89326158,608.72,608.03,0.90693113]
[1740910349683,1.13304415,608.73,608.03,0.90693113]
[1740910349684,0.89326158,608.71,608.03,0.90693113]
[1740910349880,0.89326158,608.7,608.03,0.90693113]
[1740910350080,0.89326158,608.69,608.03,0.90693113]
[1740910350279,0.89326158,608.68,608.03,0.90693113]
[1740910350482,0.89326158,608.67,608.03,0.90693113]
[1740910350686,0.89326158,608.66,608.03,0.90693113]
[1740910351083,0.89326158,608.65,608.03,1.93793113]
[1740910351288,3.92273937,608.66,608.03,1.93793113]
[1740910351588,2.322795,608.65,608.03,1.93793113]
[1740910351790,2.02630573,608.64,608.03,1.93793113]
[1740910351990,0.89326158,608.63,608.03,1.93793113]
[1740910352183,2.02630573,608.62,608.03,1.93793113]
[1740910352386,0.89326158,608.61,608.03,1.93793113]
[1740910352584,1.13304415,608.6,608.03,1.93793113]
[1740910352986,2.84938017,608.6,608.03,1.93793113]
[1740910353187,0.89326158,608.59,608.03,1.93793113]
[1740910353386,2.02630573,608.59,608.03,1.93793113]
[1740910353992,1.13304415,608.58,608.03,1.93793113]
[1740910354693,1.13304415,608.57,608.03,1.93793113]
[1740910355093,1.13304415,608.56,608.03,1.93793113]
[1740910355890,1.13304415,608.55,608.03,1.93793113]
[1740910356488,1.13304415,608.54,608.03,1.93793113]
[1740910357298,1.13304415,608.53,608.03,1.93793113]
[1740910358291,1.71639245,608.64,608.03,1.93793113]
[1740910358590,0.89392618,608.63,608.03,1.93793113]
[1740910358798,3.92549746,608.74,608.03,1.93793113]
[1740910358998,1.13304415,608.62,608.03,1.93793113]
[1740910359298,1.13304415,608.61,608.03,1.93793113]
[1740910359891,1.13304415,608.6,608.03,1.93793113]
[1740910360698,1.13304415,608.59,608.03,1.93793113]
[1740910361698,2.02713512,608.58,608.03,1.93793113]
[1740910361998,1.13304415,608.58,608.03,1.93793113]
[1740910362199,0.89409097,608.57,608.03,1.93793113]
[1740910362693,1.13304415,608.56,608.03,1.93793113]
[1740910363199,1.13304415,608.55,608.03,1.93793113]
[1740910363694,1.13304415,608.54,608.03,1.93793113]
[1740910364301,1.13304415,608.53,608.03,1.93793113]
[1740910365000,2.02741527,608.53,608.03,1.93793113]
[1740910365195,1.13304415,608.53,608.03,1.93793113]
[1740910365701,1.13304415,608.52,608.03,1.93793113]
[1740910366095,2.02780542,608.52,608.03,1.93793113]
[1740910366300,2.02780542,608.51,608.03,3.55893113]
[1740910366500,0.89476127,608.5,608.03,3.55893113]
[1740910366694,1.13304415,608.5,608.03,3.55893113]
[1740910367095,0.89500464,608.49,608.03,3.55893113]
[1740910367297,0.89500464,608.48,608.03,3.55893113]
[1740910367496,0.89500464,608.47,608.03,3.55893113]
[1740910367700,1.13304415,608.47,608.03,3.55893113]
[1740910368203,2.02825878,608.47,608.03,3.55893113]
[1740910368404,1.13304415,608.47,608.03,3.55893113]
[1740910368601,1.13304415,608.46,608.03,3.55893113]
[1740910369697,1.13304415,608.45,608.03,5.16093113]
[1740910370103,1.13304415,608.44,608.03,5.16093113]
[1740910370499,1.13304415,608.43,608.03,5.16093113]
[1740910370905,1.13304415,608.42,608.03,5.16093113]
[1740910371406,0.89562413,608.49,608.03,5.16093113]
[1740910371706,0.89582958,608.48,608.03,5.16093113]
[1740910372001,2.02998451,608.47,608.03,5.16093113]
[1740910372205,0.89582958,608.46,608.03,5.16093113]
[1740910372405,0.89582958,608.45,608.03,5.16093113]
[1740910372601,1.13415493,608.45,608.03,5.16093113]
[1740910373203,2.03042385,608.44,608.03,5.16093113]
[1740910373402,1.13415493,608.44,608.03,5.16093113]
[1740910373803,0.89633668,608.43,608.03,5.16093113]
[1740910374004,0.89633668,608.42,608.03,5.16093113]
[1740910374206,0.89633668,608.41,608.03,5.16093113]
[1740910374407,0.89633668,608.4,608.03,5.16093113]
[1740910374611,0.89633668,608.39,608.03,5.16093113]
[1740910374811,1.13415493,608.39,608.03,5.16093113]
[1740910375413,1.13415493,608.38,608.03,5.16093113]
[1740910375712,1.13415493,608.37,608.03,5.16093113]
[1740910375909,1.13415493,608.36,608.03,5.16093113]
[1740910376611,1.13415493,608.35,608.03,5.16093113]
[1740910377007,1.13415493,608.34,608.03,5.16093113]
[1740910377716,1.13415493,608.33,608.03,5.16093113]
[1740910378311,3.04144332,608.45,608.03,5.16093113]
[1740910378510,3.93835307,608.44,608.03,5.16093113]
[1740910378711,3.93835307,608.43,608.03,5.16093113]
[1740910379015,2.50346868,608.42,608.03,5.16093113]
[1740910379316,0.89690975,608.41,608.03,5.16093113]
[1740910379514,0.89690975,608.4,608.03,5.16093113]
[1740910379715,2.03245278,608.39,608.03,5.16093113]
[1740910379914,0.89690975,608.38,608.03,5.16093113]
[1740910380115,0.89699784,608.37,608.03,5.16093113]
[1740910380409,1.13554303,608.36,608.03,5.16093113]
[1740910381010,1.71656178,608.51,608.03,5.16093113]
[1740910381011,1.13554303,608.35,608.03,5.16093113]
[1740910381410,1.13554303,608.34,608.03,5.16093113]
[1740910382014,3.04203223,608.45,608.03,5.16093113]
[1740910382210,2.50387001,608.44,608.03,5.16093113]
[1740910382416,0.89702899,608.43,608.03,5.16093113]
[1740910382613,0.89702899,608.42,608.03,5.16093113]
[1740910382816,0.89702899,608.41,608.03,5.16093113]
[1740910383018,1.13576563,608.41,608.03,5.16093113]
[1740910383914,1.13576563,608.4,608.03,5.16093113]
[1740910384318,1.13576563,608.39,608.03,5.16093113]
[1740910384821,1.13576563,608.38,608.03,5.16093113]
[1740910385317,3.93943441,608.58,608.03,5.16093113]
[1740910385512,3.93943441,608.57,608.03,5.16093113]
[1740910385718,3.93943441,608.56,608.03,5.16093113]
[1740910385917,3.93943441,608.55,608.03,5.16093113]
[1740910386116,3.93943441,608.54,608.03,5.16093113]
[1740910386317,3.93943441,608.53,608.03,5.16093113]
[1740910386617,0.89708372,608.52,608.03,5.16093113]
[1740910386818,0.89708372,608.51,608.03,5.16093113]
[1740910387118,1.13563404,608.52,608.03,5.16093113]
[1740910387319,0.89695946,608.51,608.03,5.16093113]
[1740910387523,1.13563404,608.51,608.03,5.16093113]
[1740910388120,1.13563404,608.5,608.03,5.16093113]
[1740910388620,1.4351116,608.64,608.03,5.16093113]
[1740910388822,3.93874857,608.63,608.03,5.16093113]
[1740910389120,3.93874857,608.62,608.03,5.16093113]
[1740910389313,3.93874857,608.61,608.03,5.16093113]
[1740910389513,3.93874857,608.6,608.03,5.16093113]
[1740910389716,2.33200131,608.59,608.03,5.16093113]
[1740910389921,3.93856835,608.58,608.03,5.16093113]
[1740910390114,3.93856835,608.57,608.03,5.16093113]
[1740910390315,2.33187002,608.56,608.03,5.16093113]
[1740910390519,0.89688971,608.55,608.03,5.16093113]
[1740910390715,0.89688971,608.54,608.03,5.16093113]
[1740910390920,0.89688971,608.53,608.03,5.16093113]
[1740910391115,0.89688971,608.52,608.03,5.16093113]
[1740910391316,0.89688971,608.51,608.03,5.16093113]
[1740910391518,1.13544638,608.53,608.03,5.16093113]
[1740910391719,1.13544638,608.5,608.03,5.16093113]
[1740910392321,1.13544638,608.49,608.03,5.16093113]
[1740910392721,3.0415975,608.71,608.03,5.16093113]
[1740910392920,3.9384367,608.7,608.03,5.16093113]
[1740910393222,3.9384367,608.69,608.03,5.16093113]
[1740910393422,3.9384367,608.68,608.03,5.16093113]
[1740910393723,3.9384367,608.67,608.03,5.16093113]
[1740910393919,3.93838241,608.66,608.03,5.16093113]
[1740910394120,3.93838241,608.65,608.03,5.16093113]
[1740910394322,0.8968392,608.64,608.03,5.16093113]
[1740910394517,0.8968392,608.63,608.03,5.16093113]
[1740910394718,0.8968392,608.62,608.03,5.16093113]
[1740910394918,0.8968392,608.61,608.03,5.16093113]
[1740910395123,0.8968392,608.6,608.03,5.16093113]
[1740910395326,3.04110943,608.76,608.03,5.16093113]
[1740910395523,3.93773688,608.75,608.03,5.16093113]
[1740910395718,3.93773688,608.74,608.03,5.16093113]
[1740910395923,3.93773688,608.73,608.03,5.16093113]
[1740910396119,3.93773688,608.72,608.03,5.16093113]
[1740910396321,3.93773688,608.71,608.03,5.16093113]
[1740910396521,3.93773688,608.7,608.03,5.16093113]
[1740910396828,3.93773688,608.69,608.03,5.16093113]
[1740910397126,3.93773688,608.68,608.03,5.16093113]
[1740910397322,3.93773688,608.67,608.03,5.16093113]
[1740910397518,3.93773688,608.66,608.03,5.16093113]
[1740910397722,3.93773688,608.65,608.03,5.16093113]
[1740910397923,3.93773688,608.64,608.03,5.16093113]
[1740910398118,2.33132426,608.63,608.03,5.16093113]
[1740910398318,0.89662745,608.62,608.03,5.16093113]
[1740910398522,0.89662745,608.61,608.03,5.16093113]
[1740910398722,0.89662745,608.6,608.03,5.16093113]
[1740910398924,0.89662745,608.59,608.03,5.16093113]
[1740910399228,0.89662745,608.58,608.03,5.16093113]
[1740910399526,3.04085895,608.7,608.03,5.16093113]
[1740910399726,3.93737298,608.69,608.03,5.16093113]
[1740910399928,3.93737298,608.68,608.03,5.16093113]
[1740910400128,3.93737298,608.67,608.03,5.16093113]
[1740910400422,0.89651403,608.66,608.03,5.16093113]
[1740910400620,0.89651403,608.65,608.03,5.16093113]
[1740910400821,0.89651403,608.64,608.03,5.16093113]
[1740910401126,0.89651403,608.63,608.03,5.16093113]
[1740910401427,0.89651403,608.62,608.03,5.16093113]
[1740910401626,0.89651403,608.61,608.03,5.16093113]
[1740910401827,3.04023351,608.7,608.03,5.16093113]
[1740910402030,3.93664467,608.69,608.03,5.16093113]
[1740910402229,3.93664467,608.68,608.03,5.16093113]
[1740910402528,0.89641116,608.67,608.03,5.16093113]
[1740910402730,0.89641116,608.66,608.03,5.16093113]
[1740910402929,0.89641116,608.65,608.03,5.16093113]
[1740910403128,0.89641116,608.64,608.03,5.16093113]
[1740910403329,0.89641116,608.63,608.03,5.16093113]
[1740910403630,0.89641116,608.62,608.03,5.16093113]
[1740910403832,3.04014628,608.7,608.03,5.16093113]
[1740910404028,3.93651945,608.69,608.03,5.16093113]
[1740910404227,3.93662247,608.68,608.03,5.16093113]
[1740910404525,0.89640877,608.67,608.03,5.16093113]
[1740910404731,0.89640877,608.66,608.03,5.16093113]
[1740910404926,0.89640877,608.65,608.03,5.16093113]
[1740910405126,2.03119854,608.64,608.03,5.16093113]
[1740910405325,0.89640877,608.63,608.03,5.16093113]
[1740910405525,0.89640025,608.62,608.03,5.16093113]
[1740910405724,1.13478977,608.64,608.03,5.16093113]
[1740910405931,2.03119006,608.63,608.03,5.16093113]
[1740910406127,0.89640029,608.62,608.03,5.16093113]
[1740910406329,1.13478977,608.63,608.03,5.16093113]
[1740910406528,0.89643905,608.62,608.03,5.16093113]
[1740910406733,2.03122882,608.61,608.03,5.16093113]
[1740910407028,0.89643905,608.6,608.03,5.16093113]
[1740910407328,0.89643905,608.59,608.03,5.16093113]
[1740910407532,0.89643905,608.58,608.03,5.16093113]
[1740910407734,2.50249081,608.57,608.03,5.16093113]
[1740910407929,2.03122882,608.56,608.03,5.16093113]
[1740910408132,0.89643905,608.55,608.03,5.16093113]
[1740910408333,0.89643905,608.54,608.03,5.16093113]
[1740910408631,0.89643905,608.53,608.03,5.16093113]
[1740910408831,0.89643905,608.52,608.03,5.16093113]
[1740910409031,0.89643905,608.51,608.03,5.16093113]
[1740910409229,1.13478977,608.5,608.03,5.16093113]
[1740910409932,1.13478977,608.49,608.03,5.16093113]
[1740910410929,1.13478977,608.48,608.03,5.16093113]
[1740910411336,1.13478977,608.47,608.03,5.16093113]
[1740910411737,3.0410844,608.62,608.03,5.16093113]
[1740910411934,3.93776246,608.61,608.03,5.16093113]
[1740910412132,3.93776246,608.6,608.03,5.16093113]
[1740910412332,2.50304721,608.59,608.03,5.16093113]
[1740910412531,2.50304721,608.58,608.03,5.16093113]
[1740910412737,0.89667806,608.57,608.03,5.16093113]
[1740910412937,0.89667806,608.56,608.03,5.16093113]
[1740910413133,2.03182144,608.55,608.03,5.16093113]
[1740910413338,0.89667806,608.54,608.03,5.16093113]
[1740910413537,0.89667806,608.53,608.03,5.16093113]
[1740910413837,2.03182144,608.52,608.03,5.16093113]
[1740910414038,0.89667806,608.51,608.03,5.16093113]
[1740910414231,1.13514338,608.52,608.03,5.16093113]
[1740910414435,1.13514338,608.5,608.03,5.16093113]
[1740910414833,1.71618789,608.69,608.03,5.16093113]
[1740910414834,1.13514338,608.49,608.03,5.16093113]
[1740910415338,1.13514338,608.48,608.03,5.16093113]
[1740910416038,3.04109658,608.67,608.03,5.16093113]
[1740910416338,3.93779148,608.66,608.03,5.16093113]
[1740910416538,3.93779148,608.65,608.03,5.16093113]
[1740910416732,3.93779148,608.64,608.03,5.16093113]
[1740910416933,3.93779148,608.63,608.03,5.16093113]
[1740910417238,3.93779148,608.62,608.03,5.16093113]
[1740910417433,3.93779148,608.61,608.03,5.16093113]
[1740910417635,3.93779148,608.6,608.03,5.16093113]
[1740910417838,2.50307964,608.59,608.03,5.16093113]
[1740910418040,0.8966949,608.58,608.03,5.16093113]
[1740910418239,0.8966949,608.57,608.03,5.16093113]
[1740910418437,0.8966949,608.56,608.03,5.16093113]
[1740910418639,0.8966949,608.55,608.03,5.16093113]
[1740910418836,0.8966949,608.54,608.03,5.16093113]
[1740910419041,0.8966949,608.53,608.03,5.16093113]
[1740910419236,2.03185742,608.52,608.03,5.16093113]
[1740910419440,1.13517698,608.52,608.03,5.16093113]
[1740910419742,1.13517698,608.51,608.03,5.16093113]
[1740910420145,1.13517698,608.5,608.03,5.16093113]
[1740910420536,1.13517698,608.49,608.03,5.16093113]
[1740910421242,1.13517698,608.48,608.03,5.16093113]
[1740910422039,1.13517698,608.47,608.03,5.16093113]
[1740910422444,3.04116009,608.67,608.03,5.16093113]
[1740910422648,3.93787806,608.66,608.03,5.16093113]
[1740910422851,5.07307035,608.65,608.03,5.16093113]
[1740910423048,3.93787806,608.64,608.03,5.16093113]
[1740910423240,3.93787806,608.63,608.03,5.16093113]
[1740910423444,3.93788694,608.62,608.03,5.16093113]
[1740910423644,3.93788694,608.61,608.03,5.16093113]
[1740910423849,3.93788694,608.6,608.03,5.16093113]
[1740910424148,3.93788694,608.59,608.03,5.16093113]
[1740910424346,3.93788694,608.58,608.03,5.16093113]
[1740910424547,2.50313488,608.57,608.03,5.16093113]
[1740910424747,2.03191232,608.56,608.03,5.16093113]
[1740910424947,0.89672003,608.55,608.03,5.16093113]
[1740910425143,0.89672003,608.54,608.03,5.16093113]
[1740910425348,0.89672003,608.53,608.03,5.16093113]
[1740910425543,0.89672003,608.52,608.03,5.16093113]
[1740910425746,1.13519229,608.51,608.03,5.16093113]
[1740910426147,1.13519229,608.5,608.03,5.16093113]
[1740910426649,1.13519229,608.49,608.03,5.16093113]
[1740910427144,1.13519229,608.48,608.03,5.16093113]
[1740910430053,3.93792043,608.63,608.03,5.16093113]
[1740910430252,3.93792043,608.62,608.03,5.16093113]
[1740910430446,3.93792043,608.61,608.03,5.16093113]
[1740910430649,2.33147483,608.6,608.03,5.16093113]
[1740910430950,0.89672109,608.59,608.03,5.16093113]
[1740910431253,0.89672109,608.58,608.03,5.16093113]
[1740910431548,0.89672109,608.57,608.03,5.16093113]
[1740910431745,0.89672109,608.56,608.03,5.16093113]
[1740910431945,0.89672109,608.55,608.03,5.16093113]
[1740910432149,0.89672109,608.54,608.03,5.16093113]
[1740910432350,1.13523852,608.55,608.03,5.16093113]
[1740910432546,2.03209703,608.54,608.03,5.16093113]
[1740910432747,0.89685851,608.53,608.03,5.16093113]
[1740910432949,1.13523852,608.54,608.03,5.16093113]
[1740910433152,1.13523852,608.52,608.03,5.16093113]
[1740910433652,1.13523852,608.51,608.03,5.16093113]
[1740910434353,1.13523852,608.5,608.03,5.16093113]
[1740910434852,1.13523852,608.49,608.03,5.16093113]
[1740910435252,3.04186917,608.65,608.03,5.16093113]
[1740910435455,3.93900789,608.64,608.03,5.16093113]
[1740910435654,3.93900789,608.63,608.03,5.16093113]
[1740910435853,5.07472333,608.62,608.03,5.16093113]
[1740910436052,3.93900789,608.61,608.03,5.16093113]
[1740910436254,3.93900789,608.6,608.03,5.16093113]
[1740910436448,3.93900789,608.59,608.03,5.16093113]
[1740910436649,3.93900789,608.58,608.03,5.16093113]
[1740910436856,2.33221269,608.57,608.03,5.16093113]
[1740910437051,0.89713872,608.56,608.03,5.16093113]
[1740910437253,0.89713872,608.55,608.03,5.16093113]
[1740910437455,0.89713872,608.54,608.03,5.16093113]
[1740910437651,0.89739609,608.53,608.03,5.16093113]
[1740910437852,1.13571544,608.53,608.03,5.16093113]
[1740910438160,2.03327558,608.52,608.03,5.16093113]
[1740910438459,1.13571544,608.52,608.03,5.16093113]
[1740910439056,1.13571544,608.51,608.03,5.16093113]
[1740910439558,1.13571544,608.5,608.03,5.16093113]
[1740910440158,1.13571544,608.49,608.03,5.16093113]
[1740910440661,1.13571544,608.48,608.03,5.16093113]
[1740910441461,1.13571544,608.47,608.03,5.16093113]
[1740910441963,3.04483588,608.61,608.03,5.16093113]
[1740910442161,3.94283895,608.6,608.03,5.16093113]
[1740910442364,3.94283895,608.59,608.03,5.16093113]
[1740910442564,3.94283895,608.58,608.03,5.16093113]
[1740910442863,3.94283895,608.57,608.03,5.16093113]
[1740910443061,3.94283895,608.56,608.03,5.16093113]
[1740910443256,5.0810983,608.55,608.03,5.16093113]
[1740910443464,0.89823554,608.54,608.03,5.16093113]
[1740910443658,0.89823554,608.53,608.03,5.16093113]
[1740910443860,1.13709655,608.55,608.03,5.16093113]
[1740910443861,0.89823554,608.52,608.03,5.16093113]
[1740910444063,0.89823554,608.51,608.03,5.16093113]
[1740910444365,0.89823554,608.5,608.03,5.16093113]
[1740910444565,0.89823554,608.49,608.03,5.16093113]
[1740910444766,0.89823554,608.48,608.03,5.16093113]
[1740910444967,1.13709655,608.5,608.03,5.16093113]
[1740910445163,1.13709655,608.47,608.03,5.16093113]
[1740910445567,1.13709655,608.46,608.03,5.16093113]
[1740910446465,1.13709655,608.45,608.03,5.16093113]
[1740910447166,1.13709655,608.44,608.03,5.16093113]
[1740910447561,3.04744611,608.59,608.03,5.16093113]
[1740910447762,3.9460636,608.58,608.03,5.16093113]
[1740910447962,3.9460636,608.57,608.03,5.16093113]
[1740910448167,3.9460636,608.56,608.03,5.16093113]
[1740910448369,3.9460636,608.55,608.03,5.16093113]
[1740910448563,3.94616359,608.54,608.03,5.16093113]
[1740910448762,0.89861749,608.53,608.03,5.16093113]
[1740910448964,2.03623325,608.52,608.03,5.16093113]
[1740910449165,0.89861749,608.51,608.03,5.16093113]
[1740910449364,1.13761576,608.52,608.03,5.16093113]
[1740910449570,0.89862029,608.51,608.03,5.16093113]
[1740910449770,0.89862029,608.5,608.03,5.16093113]
[1740910449972,0.89862029,608.49,608.03,5.16093113]
[1740910450165,0.89862029,608.48,608.03,5.16093113]
[1740910450366,1.13761576,608.48,608.03,5.16093113]
[1740910450973,1.13761576,608.47,608.03,5.16093113]
[1740910451966,1.13761576,608.46,608.03,5.16093113]
[1740910453066,1.13761576,608.45,608.03,5.16093113]
[1740910453573,1.13761576,608.44,608.03,5.16093113]
[1740910453873,3.04769716,608.68,608.03,5.16093113]
[1740910454068,3.94633279,608.67,608.03,5.16093113]
[1740910454270,3.94633279,608.66,608.03,5.16093113]
[1740910454470,5.08397918,608.65,608.03,5.16093113]
[1740910454671,3.94633279,608.64,608.03,5.16093113]
[1740910454872,3.94633279,608.63,608.03,5.16093113]
[1740910455071,3.94633279,608.62,608.03,5.16093113]
[1740910455274,3.94633279,608.61,608.03,5.16093113]
[1740910455469,3.94633279,608.6,608.03,5.16093113]
[1740910455676,3.94633279,608.59,608.03,5.16093113]
[1740910455976,5.08419548,608.58,608.03,5.16093113]
[1740910456175,3.94654909,608.57,608.03,5.16093113]
[1740910456370,3.94654909,608.56,608.03,5.16093113]
[1740910456569,3.94654909,608.55,608.03,5.16093113]
[1740910456773,0.898685,608.54,608.03,5.16093113]
[1740910456967,0.898685,608.53,608.03,5.16093113]
[1740910457170,1.71614558,608.69,608.03,5.16093113]
[1740910457171,2.03633139,608.52,608.03,5.16093113]
[1740910457373,0.898685,608.51,608.03,5.16093113]
[1740910457675,2.03633139,608.5,608.03,5.16093113]
[1740910457874,0.898685,608.49,608.03,5.16093113]
[1740910458070,0.898685,608.48,608.03,5.16093113]
[1740910458270,1.13764639,608.47,608.03,5.16093113]
[1740910458971,1.13764639,608.46,608.03,5.16093113]
[1740910459272,1.71624432,608.69,608.03,5.16093113]
[1740910459273,1.13764639,608.45,608.03,5.16093113]
[1740910460280,3.04801981,608.6,608.03,5.16093113]
[1740910460478,3.9467943,608.59,608.03,5.16093113]
[1740910460678,3.9467943,608.58,608.03,5.16093113]
[1740910460877,0.89877449,608.57,608.03,5.16093113]
[1740910461074,0.89877449,608.56,608.03,5.16093113]
[1740910461278,0.89877449,608.55,608.03,5.16093113]
[1740910461574,0.89885059,608.54,608.03,5.16093113]
[1740910461779,0.89885059,608.53,608.03,5.16093113]
[1740910461980,0.89885059,608.52,608.03,5.16093113]
[1740910462176,1.13779185,608.55,608.03,5.16093113]
[1740910462382,0.89883069,608.54,608.03,5.16093113]
[1740910462580,0.89883069,608.53,608.03,5.16093113]
[1740910462876,0.89883069,608.52,608.03,5.16093113]
[1740910463080,1.13779185,608.54,608.03,5.16093113]
[1740910463281,1.13779185,608.51,608.03,5.16093113]
[1740910463679,1.13779185,608.5,608.03,5.16093113]
[1740910464681,1.13779185,608.49,608.03,5.16093113]
[1740910465583,1.13779185,608.48,608.03,5.16093113]
[1740910465984,1.13779185,608.47,608.03,5.16093113]
[1740910466878,2.03709525,608.46,608.03,5.16093113]
[1740910467080,1.13779185,608.46,608.03,5.16093113]
[1740910467281,2.03710108,608.45,608.03,5.16093113]
[1740910467484,1.13779185,608.45,608.03,5.16093113]
[1740910468082,1.13779185,608.44,608.03,5.16093113]
[1740910469090,1.13779185,608.43,608.03,5.16093113]
[1740910469786,1.13779185,608.42,608.03,5.16093113]
[1740910470384,1.13779185,608.41,608.03,5.16093113]
[1740910471384,0.98553323,608.69,608.03,5.16093113]
[1740910471589,3.94960745,608.68,608.03,5.16093113]
[1740910471786,3.94960745,608.67,608.03,5.16093113]
[1740910471991,5.0881622,608.66,608.03,5.16093113]
[1740910472190,5.0881622,608.65,608.03,5.16093113]
[1740910472390,3.94960745,608.64,608.03,5.16093113]
[1740910472685,1.13855475,608.65,608.03,5.16093113]
[1740910472686,3.94963014,608.63,608.03,5.16093113]
[1740910472890,3.94963014,608.62,608.03,5.16093113]
[1740910473089,3.94963014,608.61,608.03,5.16093113]
[1740910473290,3.94963014,608.6,608.03,5.16093113]
[1740910473486,5.08818489,608.59,608.03,5.16093113]
[1740910473686,3.94963014,608.58,608.03,5.16093113]
[1740910473991,2.51060898,608.57,608.03,5.16093113]
[1740910474191,2.51060898,608.56,608.03,5.16093113]
[1740910474388,0.89938823,608.55,608.03,5.16093113]
[1740910474584,0.89938823,608.54,608.03,5.16093113]
[1740910474789,2.03794298,608.53,608.03,5.16093113]
[1740910474989,0.89938823,608.52,608.03,5.16093113]
[1740910475188,1.13855475,608.53,608.03,5.16093113]
[1740910475386,1.13855475,608.51,608.03,5.16093113]
[1740910476092,1.13855475,608.5,608.03,5.16093113]
[1740910476493,1.13855475,608.49,608.03,5.16093113]
[1740910477288,1.13855475,608.48,608.03,5.16093113]
[1740910477486,3.05008202,608.72,608.03,5.16093113]
[1740910477685,3.94938812,608.71,608.03,5.16093113]
[1740910477890,3.94938812,608.7,608.03,5.16093113]
[1740910478087,3.94938812,608.69,608.03,5.16093113]
[1740910478293,3.94938812,608.68,608.03,5.16093113]
[1740910478588,3.94938812,608.67,608.03,5.16093113]
[1740910478794,3.94920912,608.66,608.03,5.16093113]
[1740910478989,3.94920912,608.65,608.03,5.16093113]
[1740910479194,3.94920912,608.64,608.03,5.16093113]
[1740910479389,3.94920912,608.63,608.03,5.16093113]
[1740910479590,3.94920912,608.62,608.03,5.16093113]
[1740910479787,3.94891783,608.61,608.03,5.16093113]
[1740910479991,5.08742724,608.6,608.03,5.16093113]
[1740910480191,3.94896424,608.59,608.03,5.16093113]
[1740910480487,2.51020369,608.58,608.03,5.16093113]
[1740910480692,0.89925512,608.57,608.03,5.16093113]
[1740910480991,0.89925512,608.56,608.03,5.16093113]
[1740910481187,2.03771812,608.55,608.03,5.16093113]
[1740910481387,0.89925512,608.54,608.03,5.16093113]
[1740910481587,0.89925512,608.53,608.03,5.16093113]
[1740910481787,0.89925512,608.52,608.03,5.16093113]
[1740910481991,2.03771812,608.51,608.03,5.16093113]
[1740910482293,0.89932231,608.5,608.03,5.16093113]
[1740910482488,2.03778531,608.49,608.03,5.16093113]
[1740910482693,0.89932231,608.48,608.03,5.16093113]
[1740910482888,0.89932231,608.47,608.03,5.16093113]
[1740910483093,1.138463,608.48,608.03,5.16093113]
[1740910483293,0.89931867,608.47,608.03,5.16093113]
[1740910483494,1.138463,608.48,608.03,5.16093113]
[1740910483688,0.89934943,608.47,608.03,5.16093113]
[1740910483887,1.138463,608.46,608.03,5.16093113]
[1740910484387,1.138463,608.45,608.03,5.16093113]
[1740910484993,1.138463,608.44,608.03,5.16093113]
[1740910485592,1.138463,608.43,608.03,5.16093113]
[1740910485993,3.05028185,608.61,608.03,5.16093113]
[1740910486193,3.94969184,608.6,608.03,5.16093113]
[1740910486394,5.08832618,608.59,608.03,5.16093113]
[1740910486594,3.94969184,608.58,608.03,5.16093113]
[1740910486794,3.94969184,608.57,608.03,5.16093113]
[1740910486997,3.94969184,608.56,608.03,5.16093113]
[1740910487197,3.94969184,608.55,608.03,5.16093113]
[1740910487397,3.94969184,608.54,608.03,5.16093113]
[1740910487592,5.08832618,608.53,608.03,5.16093113]